fUSD/lending_fUSD_20250609
["ID","MTS","AMOUNT","RATE_DAILY","PERIOD"]
[365104273,1749466287594,-700.38,0.00030136,2]
[365104274,1749466287607,-742.56,0.00030136,2]
[365104275,1749466287617,-480.0,0.00030136,2]
[365104276,1749466287627,-480.0,0.00030136,2]
[365104277,1749466287639,-8102.77,0.00030136,2]
[365104278,1749466287648,-4688.74,0.00030136,2]
[365104279,1749466287657,-1050.35,0.00030136,2]
[365104280,1749466287667,-480.0,0.00030136,2]
[365104281,1749466287676,-3444.96,0.00030136,2]
[365104282,1749466287686,-798.33,0.00030136,2]
[365104283,1749466287695,-1829.52,0.00030136,2]
[365104284,1749466287705,-480.0,0.00030136,2]
[365104285,1749466287714,-1101.27,0.00030136,2]
[365104286,1749466287724,-480.0,0.00030136,2]
[365104287,1749466287732,-1841.11,0.00030136,2]
[365104288,1749466287741,-3448.3,0.00030136,2]
[365104289,1749466287749,-480.0,0.00030136,2]
[365104290,1749466287757,-1376.3,0.00030136,2]
[365104291,1749466287765,-480.0,0.00030136,2]
[365104292,1749466287775,-1587.83,0.00030136,2]
[365104293,1749466287784,-480.0,0.00030136,2]
[365104294,1749466287794,-984.27,0.00030136,2]
[365104295,1749466287804,-1542.9,0.00030136,2]
[365104296,1749466287813,-1621.12,0.00030136,2]
[365104297,1749466287824,-1477.46,0.00030136,2]
[365104298,1749466287836,-480.0,0.00030136,2]
[365104299,1749466287846,-480.0,0.00030136,2]
[365104300,1749466287856,-1359.2,0.00030136,2]
[365104301,1749466287865,-4458.34,0.00030136,2]
[365104302,1749466287875,-971.96,0.00030136,2]
[365104303,1749466287886,-1823.89,0.00030136,2]
[365104304,1749466287896,-480.0,0.00030136,2]
[365104305,1749466287906,-1550.43,0.00030136,2]
[365104306,1749466287915,-1733.85,0.00030136,2]
[365104307,1749466287925,-499.79,0.00030136,2]
[365104308,1749466287935,-480.0,0.00030136,2]
[365104309,1749466287944,-480.0,0.00030136,2]
[365104310,1749466287954,-1130.97,0.00030136,2]
[365104311,1749466287964,-2516.42,0.00030136,2]
[365104312,1749466287973,-480.0,0.00030136,2]
[365104313,1749466287982,-1613.59,0.00030136,2]
[365104314,1749466287992,-2049.78,0.00030136,2]
[365104315,1749466288001,-842.09,0.00030136,2]
[365104316,1749466288011,-2014.14,0.00030136,2]
[365104317,1749466288020,-524.11,0.00030136,2]
[365104318,1749466288029,-858.21,0.00030136,2]
[365104319,1749466288038,-636.45,0.00030136,2]
[365104320,1749466288048,-749.74,0.00030136,2]
[365104321,1749466288058,-619.63,0.00030136,2]
[365104322,1749466288067,-1156.28,0.00030136,2]
[365104323,1749466288077,-480.0,0.00030136,2]
[365104324,1749466288087,-480.0,0.00030136,2]
[365104325,1749466288096,-480.82,0.00030136,2]
[365104326,1749466288106,-2181.65,0.00030136,2]
[365104327,1749466288116,-1314.95,0.00030136,2]
[365104328,1749466288126,-480.0,0.00030136,2]
[365104329,1749466288137,-814.24,0.00030136,2]
[365104330,1749466288147,-480.0,0.00030136,2]
[365104331,1749466288158,-775.44,0.00030136,2]
[365104332,1749466288167,-2038.4,0.00030136,2]
[365104333,1749466288176,-703.6,0.00030136,2]
[365104334,1749466288186,-1959.96,0.00030136,2]
[365104335,1749466288195,-530.15,0.00030136,2]
[365104336,1749466288204,-470.42543664,0.00030136,2]
[365104337,1749466288213,-1064.45,0.00030136,2]
[365104338,1749466288222,-480.0,0.00030136,2]
[365104339,1749466288232,-480.0,0.00030136,2]
[365104340,1749466288242,-480.0,0.00030136,2]
[365104341,1749466288252,-2187.12,0.00030136,2]
[365104342,1749466288261,-480.0,0.00030136,2]
[365104343,1749466288270,-1575.61,0.00030136,2]
[365104344,1749466288279,-4715.19,0.00030136,2]
[365104345,1749466288289,-1442.76,0.00030136,2]
[365104346,1749466288298,-518.91,0.00030136,2]
[365104347,1749466288307,-2734.29,0.00030136,2]
[365104348,1749466288317,-480.0,0.00030136,2]
[365104349,1749466288327,-1615.73,0.00030136,2]
[365104350,1749466288336,-1421.17,0.00030136,2]
[365104351,1749466288345,-2943.4,0.00030136,2]
[365104352,1749466288354,-480.0,0.00030136,2]
[365104353,1749466288364,-305.68949792,0.00030136,2]
[365104354,1749466288373,-612.54,0.00030136,2]
[365104355,1749466288384,-644.73,0.00030136,2]
[365104356,1749466288393,-480.0,0.00030136,2]
[365104357,1749466288403,-480.0,0.00030136,2]
[365104358,1749466288412,-1077.03,0.00030136,2]
[365104359,1749466288422,-729.14,0.00030136,2]
[365104360,1749466288431,-571.42,0.00030136,2]
[365104361,1749466288440,-689.62,0.00030136,2]
[365104362,1749466288450,-688.45,0.00030136,2]
[365104363,1749466288459,-485.98,0.00030136,2]
[365104364,1749466288468,-788.82,0.00030136,2]
[365104365,1749466288478,-480.0,0.00030136,2]
[365104366,1749466288617,-470.12387281,0.00030136,2]
[365104367,1749466288639,-480.0,0.00030136,2]
[365104368,1749466288649,-1117.4,0.00030136,2]
[365104369,1749466288658,-2047.14,0.00030136,2]
[365104370,1749466288667,-2506.81,0.00030136,2]
[365104371,1749466288677,-480.0,0.00030136,2]
[365104372,1749466288687,-1349.08,0.00030136,2]
[365104373,1749466288696,-2560.04,0.00030136,2]
[365104374,1749466288706,-929.05,0.00030136,2]
[365104375,1749466288715,-669.9,0.00030136,2]
[365104376,1749466288725,-2290.7,0.00030136,2]
[365104377,1749466288734,-1676.96,0.00030136,2]
[365104378,1749466288744,-480.0,0.00030136,2]
[365104379,1749466288753,-480.0,0.00030136,2]
[365104380,1749466288763,-1052.59,0.00030136,2]
[365104381,1749466288772,-1629.23,0.00030136,2]
[365104382,1749466288781,-1095.58,0.00030136,2]
[365104383,1749466288791,-9692.81,0.00030137,2]
[365104384,1749466288800,-600.0,0.00030137,2]
[365104385,1749466288813,-300.0,0.00030137,80]
[365104386,1749466288825,-218809.61,0.000302,7]
[365104387,1749466288836,-150.0,0.00030281,2]
[365104388,1749466288846,-2000.0,0.00030299,2]
[365104389,1749466288856,-992.4486,0.00030299,2]
[365104390,1749466288866,-1908.04,0.000303,31]
[365104391,1749466288875,-1908.04,0.000303,31]
[365104392,1749466288885,-1908.04,0.000303,31]
[365104393,1749466288894,-1908.04,0.000303,31]
[365104394,1749466288903,-1908.04,0.000303,31]
[365104395,1749466288912,-1908.04,0.000303,31]
[365104396,1749466288921,-1908.04,0.000303,31]
[365104397,1749466288931,-1908.04,0.000303,31]
[365104398,1749466288941,-1908.04,0.000303,31]
[365104399,1749466288951,-1908.04,0.000303,31]
[365104400,1749466288960,-1908.04,0.000303,31]
[365104401,1749466288970,-1908.04,0.000303,31]
[365104402,1749466288980,-1908.04,0.000303,31]
[365104403,1749466288989,-1908.04,0.000303,31]
[365104404,1749466288999,-1908.04,0.000303,31]
[365104405,1749466289010,-1908.04,0.000303,31]
[365104406,1749466289019,-1908.04,0.000303,31]
[365104407,1749466289029,-1908.04,0.000303,31]
[365104408,1749466289039,-1908.04,0.000303,31]
[365104409,1749466289049,-1908.04,0.000303,31]
[365104410,1749466289059,-1908.04,0.000303,31]
[365104411,1749466289069,-1908.04,0.000303,31]
[365104412,1749466289080,-1908.04,0.000303,31]
[365104413,1749466289090,-1908.04,0.000303,31]
[365104414,1749466289099,-1000.0,0.00030301,2]
[365104415,1749466289108,-210.0,0.00030411,14]
[365104416,1749466289118,-87751.97933298,0.0003049,2]
[365104417,1749466289127,-1333.0,0.00030575,21]
[365104418,1749466289137,-548.0,0.00030613,30]
[365104419,1749466289146,-1528.54342701,0.000307,2]
[365104420,1749466289156,-550.14,0.00030821,3]
[365104421,1749466289165,-230.0,0.00030858,2]
[365104422,1749466289174,-562.57,0.00030958,2]
[365104423,1749466289183,-50000.0,0.00031,21]
[365104424,1749466289194,-4012.26377944,0.00031,120]
[365104425,1749466289203,-330.65476727,0.00031,5]
[365104426,1749466289214,-833.29909032,0.00031,120]
[365104427,1749466289224,-300.0,0.00031,2]
[365104428,1749466289234,-150.0,0.00031002,2]
[365104429,1749466289243,-222.0,0.00031168,2]
[365104430,1749466289253,-1397.85,0.00031282,2]
[365104431,1749466289262,-222.0,0.00031347,2]
[365104432,1749466289271,-20127.38816663,0.0003139,6]
[365104433,1749466289280,-277.35679052,0.00031395,2]
[365104434,1749466289290,-201.93286099,0.00031395,2]
[365104435,1749466289299,-439.19430561,0.00031399,2]
[365104436,1749466289308,-218809.61,0.000314,7]
[365104437,1749466289317,-19036.15826276,0.0003143,4]
[365104438,1749466289327,-222.0,0.00031433,2]
[365104439,1749466289336,-796.76,0.00031452,2]
[365104440,1749466289345,-461.18,0.00031452,2]
[365104441,1749466289354,-461.18,0.00031452,2]
[365104442,1749466289363,-796.76,0.00031452,2]
[365104443,1749466289372,-796.76,0.00031452,2]
[365104444,1749466289382,-461.18,0.00031452,2]
[365104445,1749466289391,-222.0,0.00031461,2]
[365104446,1749466289400,-222.0,0.00031462,2]
[365104447,1749466289410,-222.0,0.00031481,2]
[365104448,1749466289419,-527.0,0.000315,2]
[365104449,1749466289429,-550.14,0.00031506,4]
[365104450,1749466289438,-9692.81,0.00031507,2]
[365104451,1749466289447,-222.0,0.0003154,2]
[365104452,1749466289456,-500.0,0.0003156,120]
[365104453,1749466289466,-222.0,0.00031562,2]
[365104454,1749466289475,-222.0,0.00031583,2]
[365104455,1749466289484,-500.0,0.00031584,120]
[365104456,1749466289493,-210.0,0.00031644,14]
[365104457,1749466289503,-222.0,0.00031672,2]
[365104458,1749466289512,-150.0,0.00031723,2]
[365104459,1749466289521,-222.0,0.00031748,2]
[365104460,1749466289530,-222.0,0.00031758,2]
[365104461,1749466289538,-2000.0,0.000318,2]
[365104462,1749466289546,-222.0,0.00031831,2]
[365104463,1749466289554,-230.0,0.00031859,7]
[365104464,1749466289563,-900.0,0.00031866,7]
[365104465,1749466289574,-222.0,0.00031893,2]
[365104466,1749466289582,-222.0,0.00031994,2]
[365104467,1749466289591,-50000.0,0.00032,22]
[365104468,1749466289600,-18766.57878059,0.00032,7]
[365104469,1749466289610,-1539.58975948,0.00032,2]
[365104470,1749466289619,-35000.0,0.00032,2]
[365104471,1749466289628,-582.013227,0.00032037,120]
[365104472,1749466289637,-222.0,0.0003205,2]
[365104473,1749466289647,-1333.0,0.00032055,30]
[365104474,1749466289657,-222.0,0.00032097,2]
[365104475,1749466289675,-222.0,0.00032111,2]
[365104476,1749466289692,-550.14,0.00032191,5]
[365104477,1749466289711,-222.0,0.00032245,2]
[365104478,1749466289730,-7000.0,0.000323,2]
[365104479,1749466289745,-222.0,0.00032313,7]
[365104480,1749466289764,-562.57,0.00032328,2]
[365104481,1749466289783,-588.0,0.00032328,2]
[365104482,1749466289800,-588.0,0.00032328,2]
[365104483,1749466289819,-588.0,0.00032328,2]
[365104484,1749466289836,-599.73559266,0.00032328,2]
[365104485,1749466289855,-222.0,0.00032355,2]
[365104486,1749466289869,-218809.61,0.000324,7]
[365104487,1749466289888,-500.0,0.000324,2]
[365104488,1749466289902,-500.0,0.000324,2]
[365104489,1749466289919,-500.0,0.000324,2]
[365104490,1749466289935,-500.0,0.000324,2]
[365104491,1749466289951,-500.0,0.000324,2]
[365104492,1749466289966,-500.0,0.000324,2]
[365104493,1749466289981,-500.0,0.000324,2]
[365104494,1749466289997,-500.0,0.000324,2]
[365104495,1749466290014,-500.0,0.000324,2]
[365104496,1749466290029,-500.0,0.000324,2]
[365104497,1749466290044,-644.0,0.000324,2]
[365104498,1749466290060,-796.76,0.00032411,2]
[365104499,1749466290076,-819.77,0.00032411,2]
[365104500,1749466290091,-500.0,0.00032425,2]
[365104501,1749466290107,-222.0,0.00032426,2]
[365104502,1749466290122,-150.0,0.00032444,2]
[365104503,1749466290137,-1502.579,0.00032523,32]
[365104504,1749466290153,-178.75335155,0.00032523,32]
[365104505,1749466290167,-356.0,0.00032539,5]
[365104506,1749466290182,-900.0,0.00032688,7]
[365104507,1749466290196,-222.0,0.00032691,2]
[365104508,1749466290212,-287.61899177,0.00032764,2]
[365104509,1749466290228,-209.40437684,0.00032764,2]
[365104510,1749466290244,-4679.48093848,0.000328,2]
[365104511,1749466290258,-480.0,0.00032876,2]
[365104512,1749466290272,-484.28023511,0.00032876,2]
[365104513,1749466290289,-483.91125105,0.00032876,2]
[365104514,1749466290304,-480.0,0.00032876,2]
[365104515,1749466290318,-480.0,0.00032876,2]
[365104516,1749466290334,-329.39223052,0.00032876,2]
[365104517,1749466290350,-485.61466262,0.00032876,2]
[365104518,1749466290364,-480.0,0.00032876,2]
[365104519,1749466290378,-480.0,0.00032876,2]
[365104520,1749466290394,-480.0,0.00032876,2]
[365104521,1749466290410,-480.0,0.00032876,2]
[365104522,1749466290425,-480.0,0.00032876,2]
[365104523,1749466290441,-550.14,0.00032876,6]
[365104524,1749466290456,-480.0,0.00032876,2]
[365104525,1749466290470,-480.0,0.00032876,2]
[365104526,1749466290485,-480.0,0.00032876,2]
[365104527,1749466290499,-480.0,0.00032876,2]
[365104528,1749466290514,-480.0,0.00032876,2]
[365104529,1749466290529,-551.94310867,0.00032876,2]
[365104530,1749466290544,-600.0,0.00032876,30]
[365104531,1749466290558,-377.25612261,0.00032876,2]
[365104532,1749466290575,-480.0,0.00032876,2]
[365104533,1749466290590,-480.0,0.00032876,2]
[365104534,1749466290605,-480.0,0.00032876,2]
[365104535,1749466290620,-480.0,0.00032876,2]
[365104536,1749466290635,-480.0,0.00032876,2]
[365104537,1749466290649,-480.0,0.00032876,2]
[365104538,1749466290663,-480.0,0.00032876,2]
[365104539,1749466290678,-480.0,0.00032876,2]
[365104540,1749466290693,-480.0,0.00032876,2]
[365104541,1749466290706,-480.0,0.00032876,2]
[365104542,1749466290720,-480.0,0.00032876,2]
[365104543,1749466290734,-929.92,0.00032876,2]
[365104544,1749466290749,-480.0,0.00032876,2]
[365104545,1749466290764,-480.0,0.00032876,2]
[365104546,1749466290778,-457.00091549,0.00032876,2]
[365104547,1749466290795,-480.0,0.00032876,2]
[365104548,1749466290809,-480.0,0.00032876,2]
[365104549,1749466290824,-534.91,0.00032876,2]
[365104550,1749466290838,-480.0,0.00032876,2]
[365104551,1749466290853,-480.0,0.00032876,2]
[365104552,1749466290868,-1021.13,0.00032876,2]
[365104553,1749466290883,-480.0,0.00032876,2]
[365104554,1749466290896,-480.0,0.00032876,2]
[365104555,1749466290912,-721.83,0.00032876,2]
[365104556,1749466290926,-988.21,0.00032876,2]
[365104557,1749466290941,-480.0,0.00032876,2]
[365104558,1749466290955,-1267.92,0.00032876,2]
[365104559,1749466290969,-480.0,0.00032876,2]
[365104560,1749466290984,-480.0,0.00032876,2]
[365104561,1749466290999,-480.0,0.00032876,2]
[365104562,1749466291013,-1301.38,0.00032876,2]
[365104563,1749466291028,-480.0,0.00032876,2]
[365104564,1749466291042,-1091.15,0.00032876,2]
[365104565,1749466291057,-480.0,0.00032876,2]
[365104566,1749466291072,-480.0,0.00032876,2]
[365104567,1749466291086,-457.19180463,0.00032876,2]
[365104568,1749466291101,-480.0,0.00032876,2]
[365104569,1749466291117,-480.0,0.00032876,2]
[365104570,1749466291132,-593.78,0.00032876,2]
[365104571,1749466291148,-476.45483035,0.00032876,2]
[365104572,1749466291163,-480.0,0.00032876,2]
[365104573,1749466291179,-480.0,0.00032876,2]
[365104574,1749466291194,-480.0,0.00032876,2]
[365104575,1749466291208,-2125.48,0.00032876,2]
[365104576,1749466291224,-480.0,0.00032876,2]
[365104577,1749466291239,-664.01,0.00032876,2]
[365104578,1749466291254,-480.0,0.00032876,2]
[365104579,1749466291269,-480.0,0.00032876,2]
[365104580,1749466291473,-487.69146044,0.00032876,2]
[365104581,1749466291508,-856.12,0.00032876,2]
[365104582,1749466291518,-480.0,0.00032876,2]
[365104583,1749466291528,-480.0,0.00032876,2]
[365104584,1749466291537,-480.0,0.00032876,2]
[365104585,1749466291546,-627.85,0.00032876,2]
[365104586,1749466291556,-288.83388433,0.00032876,2]
[365104587,1749466291570,-2765.07,0.00032876,120]
[365104588,1749466291578,-480.0,0.00032876,10]
[365104589,1749466291587,-480.0,0.00032876,2]
[365104590,1749466291596,-480.0,0.00032876,2]
[365104591,1749466291604,-480.0,0.00032876,2]
[365104592,1749466291613,-691.28,0.00032876,2]
[365104593,1749466291622,-569.32,0.00032876,2]
[365104594,1749466291631,-537.64,0.00032876,2]
[365104595,1749466291641,-616.9,0.00032876,2]
[365104596,1749466291651,-706.24,0.00032876,2]
[365104597,1749466291660,-480.0,0.00032876,2]
[365104598,1749466291670,-480.0,0.00032876,2]
[365104599,1749466291679,-1467.86,0.00032876,2]
[365104600,1749466291688,-480.0,0.00032876,2]
[365104601,1749466291698,-480.0,0.00032876,2]
[365104602,1749466291707,-480.0,0.00032876,2]
[365104603,1749466291717,-480.0,0.00032876,2]
[365104604,1749466291726,-969.56,0.00032876,2]
[365104605,1749466291736,-852.82,0.00032876,2]
[365104606,1749466291744,-515.42095429,0.00032876,2]
[365104607,1749466291754,-480.0,0.00032876,2]
[365104608,1749466291763,-480.0,0.00032876,2]
[365104609,1749466291772,-480.0,0.00032876,2]
[365104610,1749466291782,-1250.18,0.00032876,2]
[365104611,1749466291791,-480.0,0.00032876,2]
[365104612,1749466291800,-899.05,0.00032876,2]
[365104613,1749466291810,-480.0,0.00032876,2]
[365104614,1749466291819,-554.6,0.00032876,2]
[365104615,1749466291829,-305.52919244,0.00032876,2]
[365104616,1749466291838,-984.21,0.00032876,2]
[365104617,1749466291848,-860.12,0.00032876,2]
[365104618,1749466291857,-480.0,0.00032876,2]
[365104619,1749466291867,-480.0,0.00032876,2]
[365104620,1749466291876,-480.0,0.00032876,2]
[365104621,1749466291886,-480.0,0.00032876,2]
[365104622,1749466291896,-480.0,0.00032876,2]
[365104623,1749466291905,-1073.59,0.00032876,2]
[365104624,1749466291915,-680.21,0.00032876,2]
[365104625,1749466291925,-450.0778414,0.00032876,2]
[365104626,1749466291935,-480.0,0.00032876,2]
[365104627,1749466291945,-1360.4,0.00032876,2]
[365104628,1749466291954,-480.0,0.00032876,2]
[365104629,1749466291963,-480.0,0.00032876,2]
[365104630,1749466291972,-494.84,0.00032876,2]
[365104631,1749466291982,-480.0,0.00032876,2]
[365104632,1749466291991,-480.0,0.00032876,2]
[365104633,1749466292001,-480.0,0.00032876,2]
[365104634,1749466292011,-480.0,0.00032876,2]
[365104635,1749466292021,-722.18,0.00032876,2]
[365104636,1749466292030,-556.85,0.00032876,2]
[365104637,1749466292040,-480.0,0.00032876,2]
[365104638,1749466292050,-480.0,0.00032876,2]
[365104639,1749466292060,-805.54,0.00032876,2]
[365104640,1749466292070,-610.12,0.00032876,2]
[365104641,1749466292079,-573.32878627,0.00032876,2]
[365104642,1749466292089,-480.0,0.00032876,2]
[365104643,1749466292098,-707.31,0.00032876,2]
[365104644,1749466292108,-934.38,0.00032876,2]
[365104645,1749466292118,-480.0,0.00032876,2]
[365104646,1749466292127,-550.8,0.00032876,2]
[365104647,1749466292138,-947.54,0.00032876,2]
[365104648,1749466292148,-373.79426074,0.00032876,2]
[365104649,1749466292157,-1218.85,0.00032876,2]
[365104650,1749466292167,-587.78,0.00032876,2]
[365104651,1749466292177,-480.0,0.00032876,2]
[365104652,1749466292186,-480.0,0.00032876,2]
[365104653,1749466292195,-480.0,0.00032876,2]
[365104654,1749466292205,-586.54,0.00032876,2]
[365104655,1749466292215,-604.92,0.00032876,2]
[365104656,1749466292225,-480.0,0.00032876,2]
[365104657,1749466292234,-505.67,0.00032876,2]
[365104658,1749466292243,-496.73,0.00032876,2]
[365104659,1749466292253,-1956.09,0.00032876,2]
[365104660,1749466292262,-480.0,0.00032876,2]
[365104661,1749466292272,-480.0,0.00032876,2]
[365104662,1749466292282,-480.0,0.00032876,2]
[365104663,1749466292291,-480.0,0.00032876,2]
[365104664,1749466292301,-480.0,0.00032876,2]
[365104665,1749466292310,-618.85,0.00032876,2]
[365104666,1749466292319,-490.09,0.00032876,2]
[365104667,1749466292328,-1096.76,0.00032876,2]
[365104668,1749466292338,-750.02,0.00032876,2]
[365104669,1749466292347,-480.0,0.00032876,2]
[365104670,1749466292356,-1441.64,0.00032876,2]
[365104671,1749466292365,-480.0,0.00032876,2]
[365104672,1749466292375,-674.95,0.00032876,2]
[365104673,1749466292386,-480.0,0.00032876,2]
[365104674,1749466292395,-480.0,0.00032876,2]
[365104675,1749466292405,-480.0,0.00032876,2]
[365104676,1749466292414,-519.54,0.00032876,2]
[365104677,1749466292424,-480.0,0.00032876,2]
[365104678,1749466292433,-565.04,0.00032876,2]
[365104679,1749466292442,-480.0,0.00032876,2]
[365104680,1749466292451,-480.0,0.00032876,2]
[365104681,1749466292461,-480.0,0.00032876,2]
[365104682,1749466292470,-505.27,0.00032876,2]
[365104683,1749466292481,-572.04,0.00032876,2]
[365104684,1749466292491,-1988.72,0.00032876,2]
[365104685,1749466292500,-480.0,0.00032876,2]
[365104686,1749466292509,-1686.83,0.00032876,2]
[365104687,1749466292519,-412.35576974,0.00032876,2]
[365104688,1749466292528,-1528.72,0.00032876,2]
[365104689,1749466292538,-513.03,0.00032876,2]
[365104690,1749466292547,-950.22,0.00032876,2]
[365104691,1749466292558,-480.0,0.00032876,2]
[365104692,1749466292571,-480.0,0.00032876,2]
[365104693,1749466292580,-480.0,0.00032876,2]
[365104694,1749466292590,-723.57,0.00032876,2]
[365104695,1749466292599,-1022.15,0.00032876,2]
[365104696,1749466292610,-480.0,0.00032876,2]
[365104697,1749466292619,-480.0,0.00032876,2]
[365104698,1749466292629,-862.84,0.00032876,2]
[365104699,1749466292640,-480.0,0.00032876,2]
[365104700,1749466292649,-480.0,0.00032876,2]
[365104701,1749466292659,-2098.83,0.00032876,2]
[365104702,1749466292669,-482.62,0.00032876,2]
[365104703,1749466292679,-849.47,0.00032876,2]
[365104704,1749466292688,-480.0,0.00032876,2]
[365104705,1749466292698,-480.0,0.00032876,2]
[365104706,1749466292708,-1205.43,0.00032876,2]
[365104707,1749466292717,-665.76,0.00032876,2]
[365104708,1749466292727,-480.0,0.00032876,2]
[365104709,1749466292736,-877.8,0.00032876,2]
[365104710,1749466292746,-539.36,0.00032876,2]
[365104711,1749466292755,-480.0,0.00032876,2]
[365104712,1749466292765,-1239.04,0.00032876,2]
[365104713,1749466292774,-512.51169564,0.00032876,2]
[365104714,1749466292783,-480.0,0.00032876,2]
[365104715,1749466292791,-1442.33,0.00032876,2]
[365104716,1749466292799,-480.0,0.00032876,2]
[365104717,1749466292808,-761.03,0.00032876,2]
[365104718,1749466292817,-535.44,0.00032876,2]
[365104719,1749466292826,-480.0,0.00032876,2]
[365104720,1749466292834,-480.0,0.00032876,2]
[365104721,1749466292843,-480.0,0.00032876,2]
[365104722,1749466292852,-480.0,0.00032876,2]
[365104723,1749466292860,-1581.99,0.00032876,2]
[365104724,1749466292868,-480.0,0.00032876,2]
[365104725,1749466292877,-542.24734682,0.00032876,2]
[365104726,1749466292886,-480.0,0.00032876,2]
[365104727,1749466292894,-517.15,0.00032876,2]
[365104728,1749466292901,-643.28,0.00032876,2]
[365104729,1749466292908,-480.0,0.00032876,2]
[365104730,1749466292916,-370.33489719,0.00032876,2]
[365104731,1749466292924,-480.0,0.00032876,2]
[365104732,1749466292931,-559.26,0.00032876,2]
[365104733,1749466292939,-333.94769898,0.00032876,2]
[365104734,1749466292948,-695.67,0.00032876,2]
[365104735,1749466292955,-480.0,0.00032876,2]
[365104736,1749466292961,-480.0,0.00032876,2]
[365104737,1749466292968,-480.0,0.00032876,2]
[365104738,1749466292976,-480.0,0.00032876,2]
[365104739,1749466292983,-486.32732262,0.00032876,2]
[365104740,1749466292991,-480.0,0.00032876,2]
[365104741,1749466292998,-480.0,0.00032876,2]
[365104742,1749466293006,-480.0,0.00032876,2]
[365104743,1749466293014,-1004.09,0.00032876,2]
[365104744,1749466293024,-1137.84,0.00032876,2]
[365104745,1749466293033,-496.07781149,0.00032876,2]
[365104746,1749466293043,-500.0,0.00032876,2]
[365104747,1749466293053,-480.0,0.00032876,2]
[365104748,1749466293063,-1468.79,0.00032876,2]
[365104749,1749466293073,-480.0,0.00032876,2]
[365104750,1749466293083,-538.35,0.00032876,2]
[365104751,1749466293093,-1343.11,0.00032876,2]
[365104752,1749466293103,-480.0,0.00032876,2]
[365104753,1749466293113,-480.0,0.00032876,2]
[365104754,1749466293122,-494.25464342,0.00032876,2]
[365104755,1749466293133,-1685.73,0.00032876,2]
[365104756,1749466293142,-984.78,0.00032876,2]
[365104757,1749466293152,-736.22,0.00032876,2]
[365104758,1749466293162,-785.08,0.00032876,2]
[365104759,1749466293173,-480.0,0.00032876,2]
[365104760,1749466293184,-480.0,0.00032876,2]
[365104761,1749466293193,-483.04782917,0.00032876,2]
[365104762,1749466293203,-311.39699972,0.00032876,2]
[365104763,1749466293213,-1147.91,0.00032876,2]
[365104764,1749466293222,-480.0,0.00032876,2]
[365104765,1749466293232,-480.0,0.00032876,2]
[365104766,1749466293242,-480.0,0.00032876,2]
[365104767,1749466293252,-480.0,0.00032876,2]
[365104768,1749466293261,-1731.15,0.00032876,2]
[365104769,1749466293271,-480.0,0.00032876,2]
[365104770,1749466293280,-312.27798566,0.00032876,2]
[365104771,1749466293290,-1622.22,0.00032876,2]
[365104772,1749466293300,-480.0,0.00032876,2]